Cogmind - Beta 9.6 @@@ ROGUE MODE // 2020.07.26 @ 01:36:38 Player: Sigil Result: Destroyed by 8R-AWN with 8R-AWN's Boregun Performance ------------- Evolutions (0) 0 Regions Visited (3) 600 Robots Destroyed (24) 120 Value Destroyed (348) 348 Prototype IDs (0) 0 Alien Tech Used (0) 0 Bonus (-80) -80 TOTAL SCORE: 988 Bonus ------- Friendly Fire -80 Cogmind --------- Core Integrity 0/250 Matter 282/300 Energy 99/100 System Corruption 12% Temperature Cool (0) Movement Core (50) Location -10/Exiles Parts ------- > --- POWER (1) -------- (None) > --- PROPULSION (2) --- (None) > --- UTILITY (2) ------ Signal Interpreter > --- WEAPON (2) ------- (None) > --- INVENTORY (4) ---- Aluminum Leg Large Battery (300) Signal Interpreter Light Armor Plating Peak State ------------ > --- POWER ------------ Light Nuclear Core > --- PROPULSION ------- Light Treads Aluminum Leg > --- UTILITY ---------- Small Storage Unit Signal Interpreter > --- WEAPON ----------- Light Assault Rifle Light Assault Rifle > --- INVENTORY -------- Light Ion Engine Light Ion Engine Light Treads Aluminum Leg Signal Interpreter [Rating: 9] Favorites ----------- Power Light Nuclear Core Engine Ion Engine Power Core Light Nuclear Core Propulsion Light Treads Treads Light Treads Leg Aluminum Leg Utility Small Storage Unit Storage Small Storage Unit Processor Signal Interpreter Weapon Light Assault Rifle Energy Gun EM Pulse Gun Ballistic Gun Light Assault Rifle Build | -11 -10 -10 -10 ------- Run | Scr Mat Min Exi Slots Evolved . | . . . . Power . | . . . . Propulsion . | . . . . Utility . | . . . . Weapon . | . . . . Parts Attached 21 | 8 12 . 1 Power 3 | 2 1 . . Engine 2 | 2 . . . Core 1 | . 1 . . Reactor . | . . . . Propulsion 8 | 2 5 . 1 Treads 4 | 2 2 . . Leg 3 | . 3 . . Wheel . | . . . . Hover . | . . . . Flight 1 | . . . 1 Utility 3 | 2 1 . . Device . | . . . . Storage 1 | 1 . . . Processor 2 | 1 1 . . Hackware . | . . . . Protection . | . . . . Artifact . | . . . . Weapon 7 | 2 5 . . Energy Gun 1 | 1 . . . Energy Cannon . | . . . . Ballistic Gun 6 | 1 5 . . Ballistic Cannon . | . . . . Launcher . | . . . . Special Weapon . | . . . . Impact Weapon . | . . . . Slashing Weapon . | . . . . Piercing Weapon . | . . . . Special Melee Weapon . | . . . . Unidentified Prototypes . | . . . . Parts Lost 7 | . 5 . 2 Power . | . . . . Propulsion 2 | . 1 . 1 Utility 1 | . 1 . . Weapon 4 | . 3 . 1 Highest Loss Streak 4 | . 4 . 2 Average Slot Usage (%) 99 | . 98 100 100 Engine 2 | . 4 . . Core 11 | . 9 14 14 Treads 24 | . 22 28 28 Leg 3 | . 5 . . Storage 14 | . 14 14 14 Processor 13 | . 13 14 14 Energy Gun 1 | . 2 . . Ballistic Gun 26 | . 25 28 28 Naked Turns . | . . . . Heaviest Build 12 | 12 12 11 11 Greatest Support 40 | 40 40 40 40 Greatest Overweight (x) . | . . . . Average Overweight (x) . | . . . . Largest Inventory Capacity 6 | 6 6 6 6 Average Capacity 5 | 4 6 6 5 Most Carried 6 | 5 6 6 6 Average Carried 5 | 2 5 5 5 Final Capacity 6 | 6 6 6 4 Final Carried 6 | 5 6 6 4 Class Distribution -------------------- 79% | Mutant 20% | Scavenger-Mutant Dominant Class ---------------- Mutant | -10/Materials Mutant | -10/Mines Mutant | -10/Exiles Resources | -11 -10 -10 -10 ----------- Run | Scr Mat Min Exi Matter Collected 568 | 285 203 80 . Remotely . | . . . . Salvage Created 980 | 115 758 107 . Parts 50 | 3 41 6 . Haulers Intercepted 2 | . 2 . . Recyclers Shooed 4 | . 4 . . Parts Field Recycled . | . . . . Retrieved Matter . | . . . . Parts Self-Destructed . | . . . . Prevented . | . . . . Kills | -11 -10 -10 -10 ------- Run | Scr Mat Min Exi Combat Hostiles Destroyed 10 | . 8 2 . Guns 9 | . 7 2 . AOE 1 | . 1 . . Classes Destroyed 7 | 2 5 . . Worker 3 | . 2 1 . Tunneler 1 | 1 . . . Hauler 2 | . 2 . . Recycler 5 | 1 4 . . Watcher 3 | . 3 . . Swarmer 5 | . 5 . . Grunt 5 | . 3 2 . Best Kill Streak 11 | 2 11 2 . Combat Bots Only 2 | . 2 2 . Max Kills in Single Turn 2 | 1 2 1 . Gunslinging . | . . . . Exploded 1 | . 1 . . Melee . | . . . . Uniques/NPCs Destroyed . | . . . . Combat | -11 -10 -10 -10 -------- Run | Scr Mat Min Exi Damage Taken 1178 | . 645 219 314 Core 251 | . 124 21 106 Absorbed by Shields . | . . . . Core Remaining (%) 100 | 100 . . . Volleys Fired 78 | 5 54 19 . Largest 2 | 1 2 2 . Hottest 60 | 20 60 40 . Shots Fired 145 | 5 100 39 1 Gun 145 | 5 100 39 1 Cannon . | . . . . Launcher . | . . . . Special . | . . . . Kinetic 125 | 5 80 39 1 Thermal . | . . . . Explosive . | . . . . Electromagnetic 20 | . 20 . . Robot Hit Streak 9 | 5 9 8 3 Robot Miss Streak 3 | . 3 3 . Penetration Max . | . . . . Secondary Targets 3 | . 2 1 . Max Gunslinging Chain 1 | . 1 1 . Shots Hit Robots 99 | 5 67 26 1 Core Hits 49 | 2 35 11 1 Critical Hits 2 | 1 1 . . Critical Kills 1 | 1 . . . Critical Parts Destroyed 1 | . 1 . . Melee Attacks . | . . . . Impact . | . . . . Slashing . | . . . . Piercing . | . . . . Sneak Attacks . | . . . . Combat Hostiles . | . . . . Follow-up Attacks . | . . . . Damage Inflicted 1097 | 46 785 258 8 Guns 929 | 46 617 258 8 Cannons . | . . . . Explosions 168 | . 168 . . Melee . | . . . . Ramming . | . . . . Kinetic 730 | 46 418 258 8 Thermal 88 | . 88 . . Explosive 80 | . 80 . . Electromagnetic 199 | . 199 . . Impact . | . . . . Slashing . | . . . . Piercing . | . . . . Highest Corruption 12 | . 12 12 12 Average Corruption 11 | . 11 12 12 Corruption Purged . | . . . . Effects 76 | . 51 22 3 Message Errors 11 | . 7 3 1 Matter Fused 11 | . 6 5 . Heat Flow Errors 9 | . 5 3 1 Energy Discharges 13 | . 11 2 . Data Loss (minor) 6 | . 3 3 . Data Loss (major) 4 | . 2 2 . Misfires 6 | . 4 1 1 Alerts 2 | . 1 1 . Misdirections 8 | . 6 2 . Targeting Errors 5 | . 5 . . Weapon Failures 1 | . 1 . . Overload Shots . | . . . . Overflow Damage . | . . . . Projectiles . | . . . . Explosions . | . . . . Melee . | . . . . Knockbacks . | . . . . Impact . | . . . . Kinetic . | . . . . Secondary . | . . . . Self-Inflicted Damage 8 | . 8 . . Shots 1 | . 1 . . Rammed . | . . . . Targets Rammed . | . . . . Kicked . | . . . . Crushed . | . . . . Highest Temperature 289 | . 224 289 258 Average Temperature 57 | . 40 70 125 Received Heat Transfer 198 | . 75 123 . Effects 3 | . 1 2 . Energy Bleed 1 | . 1 . . Interference 2 | . . 2 . Siege Activations . | . . . . Robots Corrupted . | . . . . Combat Hostiles . | . . . . Parts Fried . | . . . . Impact Corruptions . | . . . . Robots Melted . | . . . . Combat Hostiles . | . . . . Parts Melted . | . . . . Heat Transferred 100 | . 100 . . Parts Sabotaged . | . . . . Parts Stolen . | . . . . Parts Stripped . | . . . . Power Chain Reactions 1 | . 1 . . Missiles Intercepted . | . . . . Alert | -11 -10 -10 -10 ------- Run | Scr Mat Min Exi Peak Influence 275 | 10 275 85 . Average Influence 69 | 8 77 65 . Maximum Alert Level 1 | . 1 . . Low Security (%) 93 | 100 90 100 . Level 1 6 | . 9 . . Level 2 . | . . . . Level 3 . | . . . . Level 4 . | . . . . Level 5 . | . . . . High Security . | . . . . Max Security . | . . . . Squads Dispatched 1 | . 1 . . Investigation . | . . . . Extermination . | . . . . Reinforcement 1 | . 1 . . Assault . | . . . . Garrison . | . . . . Intercept . | . . . . Construction Impeded . | . . . . Haulers Reinforced . | . . . . Stealth | -11 -10 -10 -10 --------- Run | Scr Mat Min Exi Distress Signals 2 | . 2 . . Communications Jammed . | . . . . Distress Signals . | . . . . Times Spotted 32 | . 22 2 8 Peak Tracking Total 10 | . 5 2 10 Tactical Retreats . | . . . . Traps | -11 -10 -10 -10 ------- Run | Scr Mat Min Exi Traps Triggered 1 | . 1 . . Indirectly . | . . . . Trap Hack Attempts . | . . . . Triggered . | . . . . Disarmed . | . . . . Reprogrammed . | . . . . Reused . | . . . . Traps Extracted . | . . . . Installed . | . . . . Triggered . | . . . . Machines | -11 -10 -10 -10 ---------- Run | Scr Mat Min Exi Machines Disabled 1 | . 1 . . Max in Single Turn 1 | . 1 . . Machines Sabotaged . | . . . . Garrisons Compromised . | . . . . Overloaded Fab Kills . | . . . . Fab Network Shutdowns . | . . . . Hacking | -11 -10 -10 -10 --------- Run | Scr Mat Min Exi Machines Accessed 4 | . 4 . . Terminals 4 | . 4 . . Fabricators . | . . . . Repair Stations . | . . . . Recycling Units . | . . . . Scanalyzers . | . . . . Garrison Access . | . . . . Total Hacks 10 | . 10 . . Successful 7 | . 7 . . Failed 3 | . 3 . . Catastrophic . | . . . . Database Lockouts . | . . . . Manual 11 | . 11 . . Terminals 10 | . 10 . . Fabricators . | . . . . Repair Stations . | . . . . Recycling Units . | . . . . Scanalyzers . | . . . . Garrison Access . | . . . . Terminal Hacks 5 | . 5 . . Part Schematic 2 | . 2 . . Branch Access Points 1 | . 1 . . Locate Traps 1 | . 1 . . Registered Components 1 | . 1 . . Fabricator Hacks . | . . . . Repair Station Hacks . | . . . . Recycling Unit Hacks . | . . . . Scanalyzer . | . . . . Garrison Access Hacks . | . . . . Unauthorized Hacks 2 | . 2 . . Terminals 2 | . 2 . . Track 1 | . 1 . . Assimilate 1 | . 1 . . Fabricators . | . . . . Repair Stations . | . . . . Recycling Units . | . . . . Scanalyzers . | . . . . Garrison Access . | . . . . Data Cores Recovered . | . . . . Used . | . . . . Hacking Detections 3 | . 3 . . Full Trace Events . | . . . . Feedback Events . | . . . . Feedback Blocked . | . . . . Robot Schematics Acquired . | . . . . Robots Built . | . . . . Matter . | . . . . Time . | . . . . Total Robot Build Rating . | . . . . Part Schematics Acquired 2 | . 2 . . Parts Built . | . . . . Matter . | . . . . Time . | . . . . Total Part Build Rating . | . . . . Parts Repaired . | . . . . Time . | . . . . Parts Recycled . | . . . . Recycled Matter . | . . . . Retrieved Matter . | . . . . Retrieved Components . | . . . . Parts Scanalyzed . | . . . . Part Schematics Acquired . | . . . . Parts Damaged . | . . . . Bothacking | -11 -10 -10 -10 ------------ Run | Scr Mat Min Exi Used RIF Installer . | . . . . Robots Hacked . | . . . . Non-combat . | . . . . Combat . | . . . . Robot Hacks Applied . | . . . . Relay Couplers Released . | . . . . Robots Rewired . | . . . . Allies Hacked . | . . . . Hacks Repelled . | . . . . Allies | -11 -10 -10 -10 -------- Run | Scr Mat Min Exi Total Allies 3 | . 1 2 . Largest Group 3 | . 1 3 3 Highest-Rated Group 51 | . 10 51 51 Highest-Rated Ally 31 | . 10 31 31 Total Orders 3 | . . 3 . GOTO 2 | . . 2 . FOLLOW 1 | . . 1 . Ally Attacks . | . . . . Total Damage . | . . . . Kills . | . . . . Allies Corrupted . | . . . . Allies Melted . | . . . . Intel | -11 -10 -10 -10 ------- Run | Scr Mat Min Exi Robot Analysis Total . | . . . . Derelict Logs Recovered 1 | . . 1 . Drone Launches . | . . . . Drone Recoveries . | . . . . Exploration | -11 -10 -10 -10 ------------- Run | Scr Mat Min Exi Turns Passed 1948 | 138 1191 490 129 Spaces Moved 1074 | 73 648 271 82 Core 9 | 3 . . 6 Treads 987 | 70 570 271 76 Legs 78 | . 78 . . Wheels . | . . . . Hover . | . . . . Flight . | . . . . Fastest Speed 50 | 50 120 160 50 Average Speed 156 | 155 155 160 151 Slowest Speed 160 | 160 160 160 160 Overloaded Moves . | . . . . Propulsion Burnouts . | . . . . Robots Hopped . | . . . . Cave-ins Triggered 1 | . 1 . . Exploration Rate (%) 40 | 4 83 57 18 Regions Visited 3 Branch Regions 2 Pre-discovered Areas . | . . . . Known Exits Taken 2 | . 1 1 . Unknown Exits Taken 1 | 1 . . . Scrap Searched 3 | . . 3 . Spaces Dug . | . . . . Terrain Destroyed 13 | . 13 . . Melee . | . . . . Projectile . | . . . . AOE 13 | . 13 . . Actions | -11 -10 -10 -10 --------- Run | Scr Mat Min Exi Total 1230 | 90 754 298 88 Wait 26 | . 19 7 . Move 1071 | 72 647 270 82 Hop . | . . . . Pick Up 17 | 5 11 1 . Fast Attach 12 | 7 4 . 1 Attach 4 | . 4 . . Detach . | . . . . Swap 5 | 1 4 . . Drop 17 | . 11 1 5 Fire 78 | 5 54 19 . Melee . | . . . . Ram . | . . . . Kick . | . . . . Crush . | . . . . Escape Stasis . | . . . . Rewire . | . . . . Trap . | . . . . Miscellaneous . | . . . . Route ------- -11/Scrapyard -10/Materials (discovered 3 exits: *Mat / *Min x2) -10/Mines (discovered 2 exits: *Mat / *Exi) -10/Exiles (discovered 1 exit: *Min) History --------- Turn | Location | Event 11 | -11/Scrapyard | Discovered new exit (range 15) 139 | -11/Scrapyard | Entered Materials 201 | -10/Materials | Identified exit to Mines 331 | -10/Materials | Build established: Mutant 369 | -10/Materials | Crushed by falling debris 369 | -10/Materials | System corruption reached 10% 400 | -10/Materials | Lost 4 parts (1u3w) 790 | -10/Materials | Discovered new exit (range 16) 813 | -10/Materials | Identified exit to Materials 856 | -10/Materials | Build established: Scavenger-Mutant 1279 | -10/Materials | Build established: Mutant 1330 | -10/Materials | Entered Mines 1330 | -10/Mines | Accompanied by 1 ally 1335 | -10/Mines | Core integrity fell below 50% 1387 | -10/Mines | Met a Derelict bent on vengeance 1656 | -10/Mines | Discovered exit to Materials (range 7) 1676 | -10/Mines | Learned 2 Materials zone layouts 1808 | -10/Mines | Deemed a non-threat by the Exiles lab entrance 1808 | -10/Mines | Discovered new exit (range 5) 1813 | -10/Mines | Identified exit to Exiles 1820 | -10/Mines | Entered Exiles 1820 | -10/Exiles | Accompanied by 3 allies 1846 | -10/Exiles | Discovered new exit (range 15) 1850 | -10/Exiles | Led the pair of lost Derelicts to a safe place 1865 | -10/Exiles | Identified exit to Mines 1897 | -10/Exiles | Met 8R-AWN 1921 | -10/Exiles | Met EX-HEX 1928 | -10/Exiles | Attacked by the Exiles 1947 | -10/Exiles | Core integrity fell below 20% 1949 | -10/Exiles | Destroyed by 8R-AWN with 8R-AWN's Boregun Last Messages --------------- 01942_ Rigged Lgt. Fission Core explodes. 01942_ Penetrated by HV Slug. 01942_ Lgt. Assault Rifle destroyed. 01942_ HV Slug penetrates Wall. 01942_ Penetrated by HV Slug. 01942_ HV Slug penetrates Wall. 01943_ Dropped Lgt. Treads. 01944_ Acquired Flight Unit. 01944_ HV Slug penetrates Wall. 01944_ Penetrated by HV Slug. 01944_ Flight Unit destroyed. 01944_ HV Slug penetrates Wall. 01945_ Dropped Lgt. Assault Rifle. 01946_ Dropped Lgt. Nuclear Core. 01946_ Penetrated by HV Slug. 01946_ HV Slug penetrates Machine. 01946_ Machine disabled. 01946_ Penetrated by HV Slug. 01946_ HV Slug penetrates Earth. 01949_ Penetrated by HV Slug. Map ----- +----------------------------------------------------+ | ?????????????????????????????????????????????????? | | ?????????????????????????????????????????????????? | | ?????????????????????????????????????????????????? | | ?????????????????????????????????????????????????? | | ?????????????????????????????????????????????????? | | ?????????????????????????????????????????????????? | | ?????????????????????????????????????????????????? | | ?????????????????????????????????????????????????? | | ?????????????????????????????????????????????????? | | ?????????????????????????????????????????????????? | | ?????????????????????????????????????????????????? | | ????????????????????????????????????????????###??? | | ??????????????????????????????????????????## #??? | | ?????????????????????????????????????????## #??? | | ?????????????????????????????????????????# > #??? | | ?????????????????????????????????????????# #??? | | ?????????????????????????????????????????# #??? | | ????????????????????????????????????????## ##??? | | ? ?????????????????????????????????????## ##??? | | "??????????????????????????????????# #??? | | " ?????????????#####???????????????# #??? | | " "#??????????##" #??????????????## #??? | | ""##????????#" #?????????????## # #??? | | """???????## ##????????????# ###??? | | "?????### g* ###????????### ##????? | | ##???# ![[ a @########## #?????? | | ##?## =*%a #""""## ##?????? | | ### * = * ##?????? | | ## #?????? | | #### ##????? | | " #?#""" "#### ###??? | | a # ##?#####;#??#### * ###? | | ######???????##?????##### ## | | ##???????????????????????### # | | ##??????????????????????????### # | | "" "#?????????????????????????????### # | | #" "##??????????????????????????????#" # | | ##"""""""#????????????????????????????????#### | | ?########????????????????????????????????????# | | ?????????????????????????????????????????????## | | ??????????????????????????????????????????????### | | ????????????????????????????????????????????????# | | ????????????????????????????????????????????????## | | ?????????????????????????????????????????????????# | | ?????????????????????????????????????????????????? | | ?????????????????????????????????????????????????? | | ?????????????????????????????????????????????????? | | ?????????????????????????????????????????????????? | | ?????????????????????????????????????????????????? | | ?????????????????????????????????????????????????? | +----------------------------------------------------+ Best States ------------- Heat Dissipation 25 Energy Generation 14 Energy Capacity 250 Matter Stores 300 Matter Capacity 300 Sight Range 16 Terrain Scan Density 60 Evasion (%) 40 Recoil Reduction 2 Item Schematics ----------------- Lgt. Treads | -10/Materials | Hacked Aluminum Leg | -10/Materials | Hacked Robot Schematics ------------------ None Fabricated ------------ Nothing Alien Tech Used ----------------- None Achievements -------------- None Challenges ------------ None Game ------ Seed MissileMappingArray Manual? 0 Play Time 00:24:00 Cumulative 42.3 hours Start 2020.07.26 @ 01:14:27 End 2020.07.26 @ 01:36:38 Sessions 1 Manual Loads 0 Difficulty Rogue Special Mode None Game No. 30 Rogue 30 Adventurer 0 Explorer 0 Win Type - Total 0 Types 0/0/0/0/0/0/0 Lore% 39 Gallery% 43 Achievement% 45 Wizard Run 0 Options --------- ASCII 0 Keyboard 0 Movement Numpad Keybinds 0 Fullscreen 1 Font 36/Smallcaps Map View 76x50 Tactical HUD 1 Map Filters NONE Filters NONE Steam 1 RUN: 296b5b22-98cb-46fb-9374-129e6a437f41